bitfinex-derivatives/quotes_SOLF0:USTF0_20241203
["timestamp","ask_amount","ask_price","bid_price","bid_amount"]
[1733197933309,4.2689,228.39,228.36,1.09556309]
[1733197933611,4.2689,228.39,228.36,2.1891]
[1733197934005,2.08,228.39,228.35,6.4805759]
[1733197934305,4.2689,228.39,228.36,1.09557377]
[1733197934514,4.2689,228.39,228.35,6.4805759]
[1733197934808,2.08,228.39,228.36,3.28467138]
[1733197935013,2.08,228.39,228.36,2.1891]
[1733197940910,4.2689,228.39,228.36,2.1891]
[1733197943112,4.2689,228.39,228.35,8.6697759]
[1733197943517,4.2689,228.39,228.35,2.1892]
[1733197943721,4.2689,228.39,228.36,2.1891]
[1733197944717,2.08,228.39,228.36,2.1891]
[1733197945316,45.54,228.57,228.37,6.4805759]
[1733197945514,8.6683759,228.51,228.47,2.1881]
[1733197945816,2.08,228.5,228.47,2.1881]
[1733197946012,2.08,228.49,228.47,2.1881]
[1733197947116,3.9635,228.56,228.52,2.1876]
[1733197947412,2.08,228.55,228.52,2.1876]
[1733197947618,2.08,228.55,228.5,6.4805759]
[1733197947914,2.08,228.57,228.54,6.4805759]
[1733197949015,2.08,228.57,228.55,2.1873]
[1733197949513,2.08,228.57,228.52,2.1876]
[1733197950415,2.08,228.57,228.51,6.4805759]
[1733197950416,2.08,228.57,228.51,8.6682759]
[1733197950916,6.4805759,228.59,228.51,8.6682759]
[1733197951113,2.1872,228.56,228.51,6.4805759]
[1733197951315,6.4805759,228.57,228.49,8.6683759]
[1733197951914,2.1879,228.49,228.43,2.1884]
[1733197952119,2.08,228.48,228.43,2.1884]
[1733197952425,2.08,228.48,228.46,2.1882]
[1733197953420,2.08,228.48,228.44,2.1883]
[1733197954925,2.08,228.48,228.43,8.6689759]
[1733197955921,2.08,228.48,228.45,6.4805759]
[1733197956923,2.08,228.48,228.46,2.1882]
[1733197957227,2.08,228.47,228.46,2.1882]
[1733197958225,2.08,228.47,228.45,6.4805759]
[1733197958427,2.08,228.46,228.45,8.6687759]
[1733197959329,2.1878,228.5,228.46,2.1882]
[1733197959629,2.08,228.49,228.46,2.1882]
[1733197961230,2.08,228.49,228.47,2.188]
[1733197962625,2.08,228.49,228.45,6.4805759]
[1733197962825,2.08,228.49,228.45,8.6687759]
[1733197963428,2.08,228.49,228.46,2.1881]
[1733197965427,2.08,228.49,228.45,2.1882]
[1733197965631,2.08,228.49,228.35,4.7896]
[1733197965828,2.08,228.49,228.44,6.4805759]
[1733197966637,4.268,228.49,228.45,2.1882]
[1733197967937,4.268,228.49,228.44,8.6688759]
[1733197967938,2.188,228.48,228.44,8.6688759]
[1733197968230,2.188,228.48,228.44,2.1883]
[1733197968635,8.5605759,228.49,228.42,6.4805759]
[1733197968936,2.1881,228.47,228.43,2.1884]
[1733197969136,2.1881,228.47,228.42,6.4805759]
[1733197969734,2.1881,228.47,228.43,2.1884]
[1733197970431,2.1882,228.46,228.43,2.1884]
[1733197971141,2.1881,228.47,228.43,2.1884]
[1733197972240,2.1882,228.46,228.42,2.1885]
[1733197972431,8.5605759,228.49,228.41,6.4805759]
[1733197973139,2.1883,228.45,228.41,6.4805759]
[1733197973339,2.08,228.44,228.41,6.4805759]
[1733197974033,2.08,228.44,228.41,2.1886]
[1733197975344,4.2683,228.44,228.41,2.1886]
[1733197975943,4.2683,228.44,228.35,2.7096]
[1733197976141,4.2683,228.44,228.39,6.4805759]
[1733197976544,4.2683,228.44,228.4,2.1886]
[1733197977341,4.2684,228.44,228.4,2.1887]
[1733197977542,2.08,228.44,228.4,2.1887]
[1733197978941,2.1885,228.43,228.4,2.1887]
[1733197980249,2.08,228.44,228.39,2.1888]
[1733197980448,2.08,228.44,228.38,6.4805759]
[1733197980849,2.1885,228.43,228.39,2.1888]
[1733197982048,8.6686759,228.47,228.4,6.4805759]
[1733197982244,2.08,228.46,228.4,6.4805759]
[1733197982446,2.08,228.46,228.41,2.1886]
[1733197982650,2.08,228.46,228.4,6.4805759]
[1733197983052,2.08,228.46,228.42,2.1885]
[1733197985249,4.2682,228.46,228.42,2.1885]
[1733197990262,2.1883,228.45,228.42,2.1885]
[1733197991357,4.2682,228.46,228.42,2.1885]
[1733197991861,4.0253,228.51,228.4,6.4805759]
[1733197992066,301.5276119,228.67,228.46,6.4805759]
[1733197992267,6.4805759,228.54,228.46,6.4805759]
[1733197992469,6.4805759,228.54,228.49,2.1878]
[1733197994064,6.4805759,228.54,228.37,0.7507]
[1733197994367,6.4805759,228.54,228.47,2.188]
[1733197994969,2.1876,228.52,228.47,2.188]
[1733197995168,2.08,228.51,228.47,2.188]
[1733197995562,2.08,228.51,228.45,2.1882]
[1733197995563,2.1878,228.5,228.45,2.1882]
[1733197995763,2.08,228.51,228.45,2.1882]
[1733197996261,2.188,228.49,228.44,8.6688759]
[1733197996567,2.188,228.49,228.44,6.4805759]
[1733197998160,2.188,228.49,228.45,2.1882]
[1733198008471,2.188,228.49,228.46,2.1882]
[1733198008775,2.08,228.48,228.46,2.1882]
[1733198008975,2.08,228.48,228.44,6.4805759]
[1733198009180,2.08,228.48,228.45,2.1882]
[1733198020278,2.08,228.48,228.46,2.1881]
[1733198021982,2.08,228.48,228.44,6.4805759]
[1733198022287,2.08,228.48,228.45,3.28337567]
[1733198022586,2.08,228.48,228.45,2.1882]
[1733198023282,4.268,228.48,228.42,6.4805759]
[1733198023484,4.268,228.48,228.44,2.1883]
[1733198024481,2.1885,228.43,228.39,2.1887]
[1733198024680,2.06,228.42,228.4,1.09540365]
[1733198025285,2.06,228.42,228.41,1.09540365]
[1733198025486,2.06,228.42,228.39,2.1888]
[1733198025992,2.06,228.42,228.4,1.09544643]
[1733198026287,2.06,228.42,228.39,2.1888]
[1733198026589,2.06,228.42,228.4,3.28414585]
[1733198026786,2.06,228.42,228.4,2.1887]
[1733198027685,2.06,228.42,228.36,2.1891]
[1733198027686,2.1887,228.41,228.36,2.1891]
[1733198027989,2.1887,228.41,228.37,1.0955114]
[1733198028187,2.1887,228.41,228.38,1.0955114]
[1733198028390,2.1887,228.41,228.36,6.4805759]
[1733198028590,2.06,228.42,228.37,3.2845404]
[1733198028792,2.1887,228.4,228.37,2.189]
[1733198033896,2.1887,228.4,228.31,1.2668]
[1733198034093,2.1888,228.39,228.34,6.4805759]
[1733198035096,2.1888,228.39,228.35,2.1892]
[1733198035392,2.1889,228.38,228.35,2.1892]
[1733198035588,2.06,228.37,228.35,2.1892]
[1733198035790,2.06,228.37,228.34,6.4805759]
[1733198036595,2.06,228.37,228.34,8.6698759]
[1733198037098,2.06,228.37,228.35,1.0955913]
[1733198037300,2.06,228.37,228.34,8.6698759]
[1733198037492,2.06,228.37,228.35,3.2847966]
[1733198037793,2.06,228.37,228.35,2.1892]
[1733198041693,6.4805759,228.36,228.27,18.88632639]
[1733198041896,6.4805759,228.36,228.29,6.4805759]
[1733198042101,6.4805759,228.36,228.3,1.09571801]
[1733198042301,6.4805759,228.36,228.31,2.1896]
[1733198042701,2.1893,228.35,228.31,2.1896]
[1733198043101,6.4805759,228.36,228.29,6.4805759]
[1733198043301,2.1894,228.34,228.3,2.1897]
[1733198046099,8.6699759,228.34,228.3,2.1897]
[1733198046297,2.1895,228.33,228.3,2.1897]
[1733198046495,2.08,228.32,228.3,2.1897]
[1733198047900,2.08,228.32,228.29,2.1898]
[1733198050198,2.08,228.32,228.25,1.3007]
[1733198050405,2.08,228.32,228.27,6.4805759]
[1733198051409,2.08,228.32,228.29,2.1897]
[1733198055510,2.08,228.32,228.29,2.1898]
[1733198056207,2.08,228.32,228.27,6.4805759]
[1733198057211,2.08,228.32,228.29,2.1897]
[1733198058709,2.1891,228.37,228.33,2.1894]
[1733198058909,2.06,228.36,228.33,6.4805759]
[1733198059106,2.06,228.35,228.33,6.4805759]
[1733198059312,2.06,228.34,228.33,6.4805759]
[1733198060014,2.06,228.34,228.33,8.6699759]
[1733198062409,2.06,228.34,228.33,2.1894]
[1733198068218,2.06,228.34,228.25,1.35138807]
[1733198068219,2.06,228.34,228.31,2.1895]
[1733198068419,2.06,228.34,228.32,1.09580697]
[1733198068626,2.06,228.34,228.29,6.4805759]
[1733198068828,2.06,228.34,228.3,1.09580924]
[1733198069022,2.06,228.34,228.31,1.09580924]
[1733198069224,2.06,228.34,228.32,1.09580924]
[1733198069525,2.06,228.34,228.32,2.1895]
[1733198070726,4.2494,228.34,228.3,2.1897]
[1733198070926,4.2494,228.34,228.31,1.09581877]
[1733198071127,4.2494,228.34,228.32,1.09581877]
[1733198071328,2.1895,228.33,228.3,2.1897]
[1733198071528,2.06,228.34,228.31,1.09581242]
[1733198071830,2.06,228.34,228.32,1.09581242]
[1733198072025,2.06,228.34,228.26,6.4805759]
[1733198072026,2.1895,228.33,228.26,6.4805759]
[1733198072234,6.4805759,228.37,228.31,2.1895]
[1733198072531,2.06,228.36,228.32,7.57640636]
[1733198072727,2.06,228.36,228.32,6.4805759]
[1733198072928,2.06,228.36,228.34,2.1893]
[1733198075235,2.06,228.36,228.33,2.1894]
[1733198075633,4.2492,228.36,228.26,0.05068807]
[1733198075832,4.2492,228.36,228.32,2.1895]
[1733198076033,4.2492,228.36,228.33,1.09583055]
[1733198076228,4.2492,228.36,228.3,6.4805759]
[1733198076533,2.1893,228.35,228.31,1.09583908]
[1733198076726,2.1893,228.35,228.32,1.09583908]
[1733198076926,2.1893,228.35,228.3,6.4805759]
[1733198077130,2.1893,228.35,228.31,1.09587756]
[1733198077435,2.1893,228.35,228.32,1.09587756]
[1733198077630,2.1893,228.35,228.3,6.4805759]
[1733198077830,2.1893,228.35,228.31,1.09588662]
[1733198078030,2.1893,228.35,228.32,1.09588662]
[1733198078237,2.1893,228.35,228.31,2.1896]
[1733198078437,6.4805759,228.33,228.23,18.66874893]
[1733198078639,6.4805759,228.33,228.27,2.1899]
[1733198078831,6.4805759,228.33,228.26,6.4805759]
[1733198079031,6.4805759,228.33,228.27,2.84976882]
[1733198079226,6.4805759,228.33,228.28,1.09609578]
[1733198079431,6.4805759,228.33,228.29,1.09609578]
[1733198079432,2.1896,228.32,228.29,1.09609578]
[1733198079632,2.06,228.31,228.28,2.1899]
[1733198079940,2.06,228.31,228.29,1.09603589]
[1733198080237,2.06,228.31,228.28,2.1899]
[1733198080438,2.06,228.31,228.29,1.09603134]
[1733198080638,2.06,228.31,228.28,2.1899]
[1733198080843,2.06,228.31,228.29,1.0960303]
[1733198081034,2.06,228.31,228.3,1.0960303]
[1733198082134,2.06,228.31,228.28,2.1899]
[1733198082342,2.06,228.31,228.29,1.09599205]
[1733198082530,2.06,228.31,228.3,1.09599205]
[1733198082736,2.06,228.31,228.28,2.1899]
[1733198083336,2.06,228.31,228.26,6.4805759]
[1733198083543,3.9757,228.36,228.28,6.4805759]
[1733198083739,2.18895141,228.49,228.32,6.4805759]
[1733198083740,2.06,228.35,228.32,6.4805759]
[1733198084046,2.06,228.34,228.32,6.4805759]
[1733198084344,2.06,228.33,228.32,8.6700759]
[1733198084539,2.06,228.33,228.32,6.4805759]
[1733198085141,2.06,228.33,228.32,7.57642468]
[1733198085439,3.9528,228.45,228.32,7.57642468]
[1733198085747,2.06,228.44,228.38,6.4805759]
[1733198085947,2.1886,228.43,228.38,8.6694759]
[1733198086944,2.1887,228.42,228.36,8.6696759]
[1733198087145,6.4805759,228.42,228.36,2.1891]
[1733198087745,6.4805759,228.42,228.34,6.4805759]
[1733198087947,2.189,228.38,228.34,8.6698759]
[1733198088249,2.06,228.37,228.34,8.6698759]
[1733198088848,2.06,228.37,228.34,2.1893]
[1733198089145,2.06,228.37,228.32,2.1894]
[1733198089345,2.06,228.37,228.27,18.61461351]
[1733198089544,6.4805759,228.36,228.29,6.4805759]
[1733198089750,2.1894,228.34,228.3,5.03894569]
[1733198089941,6.4805759,228.36,228.31,1.09590105]
[1733198090140,6.4805759,228.36,228.29,6.4805759]
[1733198090344,6.4805759,228.36,228.3,1.09593418]
[1733198090549,6.4805759,228.36,228.31,1.09593418]
[1733198090752,6.4805759,228.36,228.29,6.4805759]
[1733198091049,6.4805759,228.36,228.3,1.09593039]
[1733198091348,6.4805759,228.36,228.31,1.09593039]
[1733198091550,6.4805759,228.36,228.29,6.4805759]
[1733198091749,6.4805759,228.36,228.3,1.09592892]
[1733198091949,2.1894,228.34,228.31,1.09592892]
[1733198092250,2.1894,228.34,228.3,2.1897]
[1733198092450,2.1894,228.34,228.31,1.09593283]
[1733198092652,2.1894,228.34,228.3,2.1897]
[1733198092952,2.1894,228.34,228.31,1.09593372]
[1733198093146,2.1894,228.34,228.3,2.1897]
[1733198093343,2.1894,228.34,228.31,1.09593398]
[1733198093548,2.1894,228.34,228.3,2.1897]
[1733198093752,2.1894,228.34,228.31,1.09596399]
[1733198094045,2.1894,228.34,228.3,2.1897]
[1733198094249,2.1894,228.34,228.31,1.09596087]
[1733198094451,2.1894,228.34,228.3,2.1897]
[1733198094843,2.1894,228.34,228.31,1.0959596]
[1733198095145,2.1894,228.34,228.3,2.1897]
[1733198095943,2.1894,228.34,228.31,1.0959596]
[1733198096147,2.1894,228.34,228.3,2.1897]
[1733198096344,2.1894,228.34,228.31,1.0959596]
[1733198096548,2.1894,228.34,228.3,2.1897]
[1733198096748,2.1894,228.34,228.31,1.0959598]
[1733198096952,2.1894,228.34,228.3,2.1897]
[1733198098449,6.4805759,228.35,228.22,0.05094069]
[1733198098654,2.1894,228.33,228.29,2.1898]
[1733198098857,2.06,228.32,228.29,2.1898]
[1733198099349,2.06,228.32,228.3,2.1897]
[1733198104055,2.1897,228.31,228.26,6.4805759]
[1733198104256,2.06,228.32,228.27,7.57655754]
[1733198104457,2.06,228.32,228.29,2.1897]
[1733198104954,2.06,228.32,228.3,1.09599851]
[1733198105254,2.19,228.28,228.24,2.1903]
[1733198105459,2.06,228.27,228.24,2.1903]
[1733198105659,2.06,228.26,228.22,6.4805759]
[1733198105957,2.06,228.26,228.24,2.1902]
[1733198108162,2.06,228.26,228.2,0.35278]
[1733198108352,6.4805759,228.25,228.2,0.35278]
[1733198108558,6.4805759,228.23,228.2,0.35278]
[1733198108758,2.1905,228.22,228.2,0.35278]
[1733198109065,6.4805759,228.29,228.21,6.4805759]
[1733198109258,2.06,228.28,228.21,6.4805759]
[1733198110357,6.4805759,228.27,228.21,6.4805759]
[1733198110563,2.1901,228.26,228.21,6.4805759]
[1733198111060,2.1901,228.26,228.21,8.6711759]
[1733198111666,2.1903,228.25,228.2,2.54348]
[1733198111859,2.1903,228.25,228.2,9.0240559]
[1733198112158,2.06,228.28,228.22,6.4805759]
[1733198112366,2.1901,228.26,228.22,8.6710759]
[1733198112563,1.2869,228.31,228.24,6.4805759]
[1733198112758,2.06,228.3,228.24,6.4805759]
[1733198112959,2.06,228.3,228.26,2.1901]
[1733198113460,4.2497,228.3,228.26,8.6706759]
[1733198113762,2.06,228.29,228.27,2.19]
[1733198116164,2.06,228.28,228.26,6.4805759]
[1733198116968,2.06,228.28,228.27,2.19]
[1733198117264,2.06,228.28,228.24,6.4805759]
[1733198117861,2.06,228.28,228.25,1.09611094]
[1733198118060,2.06,228.28,228.24,6.4805759]
[1733198118262,4.2499,228.28,228.23,2.1903]
[1733198118462,4.2499,228.28,228.24,7.57669232]
[1733198118664,2.06,228.28,228.23,2.1903]
[1733198118864,2.06,228.28,228.23,8.6708759]
[1733198119168,4.2499,228.28,228.23,8.6708759]
[1733198119368,4.2499,228.28,228.25,6.4805759]
[1733198119662,2.06,228.28,228.27,6.4805759]
[1733198121066,2.06,228.28,228.26,6.4805759]
[1733198122965,2.06,228.28,228.26,8.6706759]
[1733198124564,2.1885,228.44,228.26,8.5405759]
[1733198124868,366.2075342,228.57,228.26,8.5405759]
[1733198124869,2.06,228.47,228.42,6.4805759]
[1733198125969,4.2481,228.47,228.42,8.6690759]
[1733198126563,2.06,228.47,228.44,6.4805759]
[1733198126768,2.06,228.47,228.46,6.4805759]
[1733198126971,2.06,228.47,228.35,18.60761168]
[1733198127165,2.1884,228.45,228.39,8.6693759]
[1733198127767,2.1884,228.44,228.39,6.4805759]
[1733198128162,2.1884,228.44,228.37,6.4805759]
[1733198128472,8.6689759,228.44,228.37,6.4805759]
[1733198128669,6.4805759,228.44,228.37,6.4805759]
[1733198128870,2.1886,228.42,228.37,6.4805759]
[1733198129067,4.2486,228.42,228.37,6.4805759]
[1733198129560,2.06,228.42,228.37,8.6695759]
[1733198130170,2.06,228.42,228.37,2.189]
[1733198130471,2.06,228.42,228.37,8.6695759]
[1733198133473,2.06,228.42,228.38,2.189]
[1733198134676,4.2486,228.42,228.36,2.1891]
[1733198134870,2.06,228.42,228.31,2.06]
[1733198135077,2.06,228.42,228.36,6.4805759]
[1733198136072,4.2486,228.42,228.37,2.189]
[1733198136775,2.1887,228.41,228.37,2.189]
[1733198137280,2.06,228.42,228.36,6.4805759]
[1733198137281,2.1889,228.4,228.36,6.4805759]
[1733198137468,2.06,228.42,228.36,6.4805759]
[1733198138173,2.06,228.42,228.38,6.4805759]
[1733198138680,2.06,228.42,228.36,6.4805759]
[1733198139479,2.1889,228.39,228.36,6.4805759]
[1733198140681,2.06,228.42,228.36,6.4805759]
[1733198140977,2.06,228.42,228.38,6.4805759]
[1733198141977,2.1887,228.41,228.38,6.4805759]
[1733198143282,2.1887,228.41,228.37,2.189]
[1733198144879,2.06,228.42,228.36,8.6696759]
[1733198144880,2.1888,228.4,228.36,8.6696759]
[1733198147380,2.06,228.42,228.36,6.4805759]
[1733198147581,2.1889,228.39,228.34,8.6698759]
[1733198147780,2.1889,228.39,228.34,6.4805759]
[1733198149084,2.1889,228.39,228.35,2.1892]
[1733198149286,2.06,228.42,228.34,6.4805759]
[1733198149581,2.189,228.38,228.34,6.4805759]
[1733198150584,6.4805759,228.41,228.34,6.4805759]
[1733198151376,2.189,228.38,228.34,8.6698759]
[1733198152485,4.2491,228.37,228.34,2.1893]
[1733198156281,2.1892,228.36,228.32,2.1894]
[1733198156587,2.1892,228.36,228.32,8.6699759]
[1733198157283,2.06,228.37,228.26,0.2318]
[1733198157484,2.1895,228.33,228.29,2.1898]
[1733198157680,2.06,228.32,228.29,2.1898]
[1733198157886,2.06,228.32,228.28,6.4805759]
[1733198158082,2.1896,228.31,228.28,6.4805759]
[1733198158990,2.1896,228.31,228.28,8.6704759]
[1733198159491,2.06,228.32,228.28,6.4805759]
[1733198159693,2.06,228.32,228.3,6.4805759]
[1733198159994,2.06,228.32,228.26,0.2318]
[1733198160290,2.06,228.32,228.31,8.6701759]
[1733198165187,2.06,228.32,228.31,2.1896]
[1733198165388,2.06,228.32,228.31,8.6701759]
[1733198168198,2.06,228.36,228.33,2.1894]
[1733198168400,4.2492,228.36,228.33,2.1894]
[1733198172803,2.06,228.36,228.33,2.1894]
[1733198173013,3.9477,228.45,228.35,6.4805759]
[1733198173310,2.06,228.44,228.37,6.4805759]
[1733198173508,2.1888,228.4,228.37,8.6695759]
[1733198173713,2.06,228.39,228.37,8.6695759]
[1733198174106,2.06,228.39,228.37,2.189]
[1733198180113,2.06,228.39,228.35,6.4805759]
[1733198180114,2.06,228.39,228.33,6.4805759]
[1733198180617,2.1891,228.37,228.34,2.1893]
[1733198181013,2.06,228.39,228.29,2.5817]
[1733198181213,6.4805759,228.37,228.32,2.1895]
[1733198181618,2.1892,228.35,228.32,2.1895]
[1733198181917,2.06,228.34,228.32,2.1895]
[1733198182915,2.06,228.34,228.31,8.6701759]
[1733198184118,4.2493,228.34,228.31,8.6701759]
[1733198184719,2.06,228.34,228.31,8.6701759]
[1733198186019,2.06,228.34,228.33,2.1894]
[1733198186219,2.06,228.34,228.33,8.6699759]
[1733198186616,2.06,228.34,228.33,9.76574706]
[1733198186823,2.06,228.37,228.36,2.1891]
[1733198187017,2.06,228.39,228.37,6.4805759]
[1733198187626,2.06,228.39,228.37,8.6695759]
[1733198188924,2.06,228.39,228.37,2.189]
[1733198189721,2.06,228.39,228.36,2.1891]
[1733198196932,6.4805759,228.38,228.28,0.05087574]
[1733198197128,6.4805759,228.31,228.29,2.84922646]
[1733198197327,8.5405759,228.3,228.23,0.30244]
[1733198197527,2.06,228.29,228.24,5.04141807]
[1733198197732,2.06,228.28,228.25,1.75353672]
[1733198197930,2.06,228.27,228.25,1.09596045]
[1733198198133,2.06,228.27,228.26,1.09596045]
[1733198198725,2.06,228.27,228.23,6.7830159]
[1733198198930,2.06,228.27,228.24,3.28646017]
[1733198199131,2.06,228.27,228.24,2.1903]
[1733198200533,2.06,228.27,228.25,8.6707759]
[1733198200828,2.06,228.28,228.26,1.09610625]
[1733198201028,2.06,228.28,228.27,6.4805759]
[1733198201927,2.06,228.28,228.27,8.6705759]
[1733198202129,2.06,228.28,228.27,9.76659058]
[1733198202632,2.06,228.28,228.27,3.28601468]
[1733198202834,2.06,228.28,228.27,2.19]
[1733198204136,2.1887,228.41,228.27,6.4805759]
[1733198204335,2.1887,228.41,228.37,6.4805759]
[1733198204336,2.06,228.4,228.37,6.4805759]
[1733198205133,2.06,228.4,228.37,8.6695759]
[1733198205328,2.06,228.4,228.37,6.4805759]
[1733198205535,2.06,228.4,228.39,6.4805759]
[1733198206434,2.18,228.41,228.4,2.1887]
[1733198208634,2.18,228.41,228.39,6.4805759]
[1733198210042,2.18,228.41,228.39,8.6694759]
[1733198210337,2.18,228.41,228.24,3.9998]
[1733198210540,2.1891,228.37,228.32,6.4805759]
[1733198210750,2.18,228.36,228.32,6.4805759]
[1733198213036,2.18,228.36,228.32,8.6700759]
[1733198213840,2.18,228.36,228.32,6.4805759]
[1733198213841,4.3692,228.36,228.32,6.4805759]
[1733198214036,4.3692,228.36,228.31,2.1896]
[1733198214734,2.1893,228.35,228.31,2.1896]
[1733198214943,2.1893,228.35,228.32,6.4805759]
[1733198215946,2.18,228.36,228.32,6.4805759]
[1733198216943,4.3692,228.36,228.32,6.4805759]
[1733198217946,2.18,228.36,228.24,3.9998]
[1733198218148,8.6605759,228.36,228.29,6.4805759]
[1733198218447,8.6605759,228.36,228.27,6.4805759]
[1733198218640,6.4805759,228.34,228.28,1.09593568]
[1733198218845,6.4805759,228.34,228.27,6.4805759]
[1733198219243,2.1895,228.32,228.27,8.6705759]
[1733198219445,2.18,228.31,228.27,8.6705759]
[1733198219646,2.18,228.31,228.27,2.19]
[1733198219947,2.18,228.31,228.27,8.6705759]
[1733198221049,4.3696,228.31,228.27,8.6705759]
[1733198221349,2.18,228.31,228.27,6.4805759]
[1733198221552,2.1898,228.3,228.27,6.4805759]
[1733198221845,2.18,228.31,228.25,6.4805759]
[1733198224246,2.18,228.31,228.17,2.6384]
[1733198224247,2.1901,228.26,228.22,2.1904]
[1733198224447,2.18,228.25,228.22,6.4805759]
[1733198224752,2.18,228.25,228.24,6.4805759]
[1733198225054,2.18,228.25,228.24,8.6708759]
[1733198225244,16.88664041,228.38,228.24,6.4805759]
[1733198225450,2.1895,228.32,228.3,6.4805759]
[1733198225653,2.18,228.31,228.3,6.4805759]
[1733198226247,4.3696,228.31,228.3,6.4805759]
[1733198226446,2.18,228.31,228.3,6.4805759]
[1733198227660,2.18,228.31,228.28,8.6703759]
[1733198228458,4.3696,228.31,228.28,6.4805759]
[1733198231046,2.1897,228.3,228.28,6.4805759]
[1733198231851,2.18,228.31,228.17,2.6384]
[1733198231852,2.19,228.27,228.21,2.1906]
[1733198232048,2.18,228.26,228.25,6.4805759]
[1733198238662,2.18,228.26,228.23,2.1904]
[1733198238863,2.18,228.26,228.24,6.4805759]
[1733198239465,4.3701,228.26,228.24,6.4805759]
[1733198239664,2.18,228.26,228.24,6.4805759]
[1733198240166,2.18,228.26,228.2,2.1906]
[1733198240459,2.18,228.26,228.17,1.331]
[1733198240662,2.18,228.26,228.21,6.4805759]
[1733198242473,2.1904,228.23,228.21,6.4805759]
[1733198242668,2.18,228.26,228.21,6.4805759]
[1733198243575,2.1905,228.22,228.21,6.4805759]
[1733198245570,2.1908,228.2,228.16,2.1911]
[1733198245771,2.12,228.19,228.16,8.6716759]
[1733198247475,2.12,228.19,228.17,2.191]
[1733198247870,2.12,228.19,228.16,6.4805759]
[1733198248068,2.12,228.19,228.18,6.4805759]
[1733198248972,2.12,228.19,228.14,0.4842]
[1733198249875,2.1911,228.16,228.14,0.4842]
[1733198250271,2.12,228.19,228.14,0.4842]
[1733198250472,2.1912,228.15,228.14,0.4842]
[1733198252876,6.4805759,228.17,228.01,18.6343995]
[1733198252877,2.1914,228.13,228.08,8.6723759]
[1733198253172,2.12,228.12,228.08,6.4805759]
[1733198254071,2.12,228.12,228.09,2.1917]
[1733198254277,4.3115,228.12,228.01,18.6343995]
[1733198254474,4.3115,228.12,228.09,6.4805759]
[1733198256177,2.12,228.12,228.01,18.6343995]
[1733198256381,2.12,228.12,228.04,6.4805759]
[1733198256680,6.4805759,228.11,228.04,6.4805759]
[1733198256885,2.1918,228.09,228.04,8.6727759]
[1733198257279,6.4805759,228.09,228.01,6.4805759]
[1733198257480,2.12,228.12,228.01,6.4805759]
[1733198257481,6.4805759,228.07,228.01,6.4805759]
[1733198257681,2.12,228.06,228.01,6.4805759]
[1733198258077,2.12,228.06,228.03,6.4805759]
[1733198258279,2.12,228.06,227.9,0.05066909]
[1733198258280,6.4805759,228.05,227.9,0.05066909]
[1733198258479,6.4805759,228.0,227.92,6.4805759]
[1733198258788,2.12,227.99,227.93,2.85405606]
[1733198259083,2.12,227.99,227.94,1.09771387]
[1733198259281,6.4805759,227.98,227.91,6.4805759]
[1733198259580,2.193,227.96,227.92,2.85426763]
[1733198259786,2.193,227.96,227.93,2.85426763]
[1733198259986,2.12,227.99,227.94,1.09779524]
[1733198260186,2.12,227.99,227.95,1.09779524]
[1733198260388,2.1927,227.97,227.96,1.09779524]
[1733198260787,2.1927,227.97,227.91,8.6737759]
[1733198261381,2.1927,227.97,227.92,5.04978019]
[1733198261880,2.1927,227.97,227.91,8.6737759]
[1733198261881,8.6735759,227.94,227.93,2.85422358]
[1733198262082,2.12,227.94,227.93,2.85422358]
[1733198262276,2.12,227.94,227.93,5.1009863]
[1733198262477,2.1925,227.99,227.93,5.1009863]